fUST/lending_fUST_20251006
["ID","MTS","AMOUNT","RATE_DAILY","PERIOD"]
[389599625,1759737032048,-348.0,0.00017238,2]
[389599627,1759737032057,-160.0,0.00017505,2]
[389599629,1759737032066,-533.6495537,0.00017588,2]
[389599631,1759737032076,-293.61728183,0.00017588,2]
[389599633,1759737032086,-160.0,0.00017601,2]
[389599635,1759737032095,-372.0,0.00017638,2]
[389599637,1759737032105,-234.17717776,0.00017643,2]
[389599639,1759737032115,-160.0,0.00017643,2]
[389599641,1759737032124,-160.0,0.00017644,2]
[389599643,1759737032136,-160.0,0.00017647,2]
[389599645,1759737032146,-1143.46215868,0.00017692,2]
[389599647,1759737032156,-371.13,0.00017835,2]
[389599649,1759737032167,-396.0,0.00018038,2]
[389599651,1759737032176,-300.0,0.00018052,2]
[389599653,1759737032186,-300.0,0.00018052,2]
[389599655,1759737032196,-300.0,0.00018052,2]
[389599657,1759737032205,-300.0,0.00018052,2]
[389599659,1759737032215,-300.0,0.00018052,2]
[389599661,1759737032224,-300.0,0.00018052,2]
[389599663,1759737032234,-300.0,0.00018052,2]
[389599664,1759737032384,-300.0,0.00018052,2]
[389599665,1759737032450,-300.0,0.00018052,2]
[389599666,1759737032461,-298.81674916,0.00018052,2]
[389600476,1759737045980,-500.0,0.000172,2]
[389600498,1759737046184,-353.00175403,0.000172,2]
[389600500,1759737046194,-141.06392675,0.000172,2]
[389604398,1759737456227,2268.03,0.00028767,120]
[389604441,1759737569544,2009.36631597,0.00028767,120]
[389604442,1759737595764,200.14282825,0.000184,120]
[389604456,1759737884895,1174.089,0.00028767,120]
[389604560,1759738237925,-300.0,0.000171,2]
[389604561,1759738237937,-388.15529812,0.000172,2]
[389604562,1759738237947,-643.26632744,0.0001727,2]
[389604563,1759738237959,-356.73367256,0.0001727,2]
[389604564,1759738237970,-226.376032,0.00017328,2]
[389604565,1759738237982,-324.0,0.000175,2]
[389604566,1759738237992,-533.6495537,0.00017592,2]
[389604567,1759738238003,-160.0,0.00017592,2]
[389604568,1759738238016,-293.61728183,0.00017592,2]
[389604569,1759738238028,-160.0,0.00017592,2]
[389604570,1759738238040,-234.17717776,0.00017592,2]
[389604571,1759738238051,-160.0,0.00017592,2]
[389604572,1759738238063,-160.0,0.00017592,2]
[389604573,1759738238075,-160.0,0.00017592,2]
[389604574,1759738238086,-283.367,0.00017835,2]
[389604575,1759738238099,-300.0,0.00017841,2]
[389604576,1759738238111,-139.43490683,0.00017841,2]
[389604577,1759738238124,-160.56509317,0.00017841,2]
[389604578,1759738238134,-300.0,0.00017841,2]
[389604579,1759738238144,-300.0,0.00017841,2]
[389604580,1759738238153,-248.95389383,0.00017841,2]
[389604581,1759738238291,-51.04610617,0.00017841,2]
[389604582,1759738238303,-300.0,0.00017841,2]
[389604583,1759738238313,-300.0,0.00017841,2]
[389604584,1759738238325,-300.0,0.00017841,2]
[389604585,1759738238335,-300.0,0.00017841,2]
[389604586,1759738238348,-300.0,0.00017841,2]
[389604587,1759738238365,-300.0,0.00017841,2]
[389604588,1759738238376,-300.0,0.00017841,2]
[389604589,1759738238387,-300.0,0.00017841,2]
[389604590,1759738238398,-300.0,0.00017841,2]
[389604591,1759738238408,-300.0,0.00017841,2]
[389604592,1759738238418,-600.0,0.00017841,2]
[389604593,1759738238429,-166.66,0.00017841,2]
[389604594,1759738238440,-348.0,0.000179,2]
[389604595,1759738238450,-230.05,0.00017956,2]
[389604596,1759738238461,-231.38831314,0.00017956,2]
[389604597,1759738238471,-230.05,0.00018056,2]
[389604598,1759738238482,-151.0,0.000181,2]
[389604599,1759738238493,-166.66,0.00018115,2]
[389604600,1759738238503,-151.0,0.00018134,2]
[389604601,1759738238514,-199.64,0.00018137,2]
[389604602,1759738238524,-151.0,0.00018168,2]
[389604603,1759738238536,-500.0,0.00018184,2]
[389604604,1759738238547,-500.0,0.00018184,2]
[389604605,1759738238558,-500.0,0.00018184,2]
[389604606,1759738238568,-500.0,0.00018184,2]
[389604607,1759738238579,-500.0,0.00018184,2]
[389604608,1759738238590,-500.0,0.00018184,2]
[389604609,1759738238601,-500.0,0.00018184,2]
[389604610,1759738238613,-500.0,0.00018184,2]
[389604611,1759738238623,-387.0018564,0.00018184,2]
[389604612,1759738238634,-421.4997108,0.00018184,2]
[389604613,1759738238645,-500.0,0.00018184,2]
[389604614,1759738238656,-531.18773665,0.00018184,2]
[389604615,1759738238666,-500.0,0.00018184,2]
[389604616,1759738238677,-574.46762869,0.00018184,2]
[389604617,1759738238687,-500.0,0.00018184,2]
[389604618,1759738238697,-500.0,0.00018184,2]
[389604619,1759738238708,-164.67637258,0.00018184,2]
[389604620,1759738238718,-500.0,0.00018184,2]
[389604621,1759738238728,-500.0,0.00018184,2]
[389604622,1759738238738,-500.0,0.00018184,2]
[389604623,1759738238749,-153.31,0.00018185,2]
[389604624,1759738238760,-151.0,0.00018185,2]
[389604625,1759738238770,-156.0077614,0.00018185,2]
[389604626,1759738238780,-151.0,0.00018185,2]
[389604627,1759738238791,-151.0,0.00018185,2]
[389604628,1759738238801,-151.0,0.00018185,2]
[389604629,1759738238811,-151.0,0.00018185,2]
[389604630,1759738238822,-151.0,0.00018185,2]
[389604631,1759738238832,-151.0,0.00018203,2]
[389604632,1759738238842,-151.0,0.00018237,2]
[389604633,1759738238854,-198.0,0.00018271,2]
[389604634,1759738238864,-500.0,0.00018271,2]
[389604635,1759738238875,-151.0,0.00018271,2]
[389604636,1759738238885,-151.0,0.00018271,2]
[389604637,1759738238895,-151.0,0.00018271,2]
[389604638,1759738238905,-151.0,0.00018271,2]
[389604639,1759738238916,-500.0,0.00018271,2]
[389604640,1759738238927,-151.17842787,0.00018271,2]
[389604641,1759738238938,-151.0,0.00018271,2]
[389604642,1759738238948,-1116.0,0.00018271,2]
[389604643,1759738238959,-151.0,0.00018272,2]
[389604644,1759738238969,-372.0,0.000183,2]
[389604645,1759738238980,-151.0,0.00018306,2]
[389604646,1759738238990,-151.0,0.00018341,2]
[389604647,1759738239001,-151.0,0.00018345,2]
[389604648,1759738239011,-151.0,0.00018345,2]
[389604649,1759738239021,-151.0,0.00018345,2]
[389604650,1759738239032,-151.0,0.00018345,2]
[389604651,1759738239042,-150.0,0.00018345,2]
[389604652,1759738239053,-150.0,0.00018345,2]
[389604653,1759738239063,-150.0,0.00018345,2]
[389604654,1759738239074,-630.0,0.00018345,2]
[389604655,1759738239085,-2158.0,0.00018345,2]
[389604656,1759738239095,-151.0,0.00018375,2]
[389604657,1759738239106,-166.68,0.00018389,2]
[389604658,1759738239117,-647.0594324,0.00018392,2]
[389604659,1759738239128,-292.04,0.0001841,2]
[389604660,1759738239139,-151.0,0.0001841,2]
[389604661,1759738239150,-234.0,0.00018411,3]
[389604662,1759738239160,-151.0,0.00018444,2]
[389604663,1759738239172,-853.21317875,0.00018457,2]
[389604664,1759738239183,-500.0,0.00018458,2]
[389604665,1759738239194,-151.0,0.00018459,2]
[389604666,1759738239204,-151.0,0.00018459,2]
[389604667,1759738239215,-151.0,0.00018459,2]
[389604668,1759738239226,-151.0,0.00018459,2]
[389604669,1759738239236,-151.0,0.00018479,2]
[389604670,1759738239248,-151.0,0.00018513,2]
[389604671,1759738239259,-500.0,0.00018539,2]
[389604672,1759738239269,-638.22483413,0.00018545,2]
[389604673,1759738239283,-163.95982366,0.00018545,2]
[389604674,1759738239293,-151.0,0.00018545,2]
[389604675,1759738239303,-541.36153996,0.00018545,2]
[389604676,1759738239314,-151.0,0.00018545,2]
[389604677,1759738239325,-1116.0,0.00018545,2]
[389604678,1759738239335,-151.0,0.00018548,2]
[389604679,1759738239346,-2927.0,0.00018558,2]
[389604680,1759738239357,-151.0,0.00018582,2]
[389604681,1759738239368,-539.42937222,0.00018603,2]
[389604682,1759738239379,-4087.02116141,0.00018604,2]
[389604683,1759738239390,-151.0,0.00018617,2]
[389604684,1759738239400,-198.0,0.00018619,2]
[389604685,1759738239411,-151.0,0.00018619,2]
[389604686,1759738239421,-151.0,0.00018619,2]
[389604687,1759738239432,-151.0,0.00018651,2]
[389604688,1759738239443,-302.0,0.00018677,2]
[389604689,1759738239454,-151.0,0.00018686,2]
[389604690,1759738239465,-396.0,0.000187,2]
[389604691,1759738239475,-151.0,0.0001872,2]
[389604692,1759738239486,-500.0,0.00018732,2]
[389604693,1759738239497,-198.0,0.00018733,2]
[389604694,1759738239508,-151.0,0.00018733,2]
[389604695,1759738239519,-151.0,0.00018755,2]
[389604696,1759738239530,-151.0,0.00018789,2]
[389604697,1759738239540,-500.01,0.0001879,2]
[389604698,1759738239551,-161.04,0.0001879,2]
[389604699,1759738239563,-500.0,0.00018813,2]
[389604700,1759738239573,-151.0,0.00018819,2]
[389604701,1759738239583,-1116.0,0.00018819,2]
[389604702,1759738239592,-151.0,0.00018824,2]
[389604703,1759738239601,-151.0,0.00018858,2]
[389604707,1759738239857,-158.77379603,0.00018893,2]
[389604708,1759738239877,-151.0,0.00018893,2]
[389604709,1759738239888,-151.0,0.00018893,2]
[389604710,1759738239897,-1110.11376405,0.00018906,2]
[389604711,1759738239906,-151.0,0.00018927,2]
[389604712,1759738239915,-151.0,0.00018962,2]
[389604713,1759738239924,-151.0,0.00018996,2]
[389604714,1759738239933,-600.0,0.00019,2]
[389604715,1759738239942,-35603.90870711,0.00019,2]
[389604716,1759738239951,-500.0,0.00019006,2]
[389604717,1759738239959,-151.0,0.00019007,2]
[389604718,1759738239968,-151.0,0.00019031,2]
[389604720,1759738239978,-1062.60035708,0.00019049,2]
[389604722,1759738239987,-341.55666163,0.00019058,2]
[389604724,1759738239995,-500.0,0.00019058,2]
[389604725,1759738240005,-500.0,0.00019058,2]
[389604726,1759738240014,-500.0,0.00019058,2]
[389604727,1759738240024,-500.0,0.00019058,2]
[389604728,1759738240033,-500.0,0.00019058,2]
[389604729,1759738240042,-500.0,0.00019058,2]
[389604730,1759738240051,-500.0,0.00019058,2]
[389604731,1759738240060,-500.0,0.00019058,2]
[389604732,1759738240069,-500.0,0.00019058,2]
[389604733,1759738240079,-507.66409169,0.00019058,2]
[389604734,1759738240088,-500.0,0.00019058,2]
[389604735,1759738240097,-501.331365,0.00019058,2]
[389604736,1759738240107,-500.0,0.00019058,2]
[389604737,1759738240116,-500.0,0.00019058,2]
[389604738,1759738240125,-500.0,0.00019058,2]
[389604739,1759738240135,-500.0,0.00019058,2]
[389604740,1759738240144,-500.0,0.00019058,2]
[389604741,1759738240153,-151.0,0.00019065,2]
[389604742,1759738240162,-500.0,0.00019075,2]
[389604743,1759738240172,-500.0,0.00019081,2]
[389604744,1759738240181,-500.0,0.00019087,2]
[389604745,1759738240190,-151.0,0.00019093,2]
[389604746,1759738240199,-1116.0,0.00019093,2]
[389604747,1759738240209,-500.0,0.00019095,2]
[389604748,1759738240218,-151.0,0.000191,2]
[389604749,1759738240227,-420.0,0.000191,2]
[389604750,1759738240237,-500.0,0.00019128,2]
[389604751,1759738240246,-500.0,0.00019128,2]
[389604752,1759738240255,-500.00985826,0.00019128,2]
[389604753,1759738240265,-198.00641291,0.00019167,2]
[389604754,1759738240274,-157.31,0.00019176,3]
[389604755,1759738240289,-500.0,0.00019176,2]
[389604756,1759738240298,-797.39925015,0.00019178,2]
[389604757,1759738240307,-151.0,0.00019178,2]
[389604758,1759738240316,-261.68566268,0.00019178,2]
[389604759,1759738240326,-150.0,0.00019178,2]
[389604760,1759738240335,-545.19450403,0.00019186,2]
[389604761,1759738240344,-471.96,0.00019187,3]
[389604762,1759738240353,-500.0,0.00019197,2]
[389604763,1759738240363,-500.38124082,0.00019197,2]
[389604764,1759738240372,-501.52920836,0.00019197,2]
[389604765,1759738240381,-374.45360787,0.00019197,2]
[389604766,1759738240390,-1110.11376403,0.00019237,2]
[389604767,1759738240399,-500.0,0.0001928,2]
[389604768,1759738240408,-183.54901209,0.00019281,2]
[389604769,1759738240417,-300.0,0.00019315,2]
[389604770,1759738240425,-314.62,0.00019351,3]
[389604771,1759738240434,-500.0,0.00019361,2]
[389604772,1759738240443,-151.0,0.00019367,2]
[389604773,1759738240452,-1116.0,0.00019367,2]
[389604774,1759738240461,-170.26932716,0.00019399,2]
[389604775,1759738240471,-267.3213927,0.00019399,2]
[389604776,1759738240480,-3000.0,0.000194,2]
[389604777,1759738240490,-3000.0,0.0001941,2]
[389604778,1759738240499,-3000.0,0.0001942,2]
[389604779,1759738240509,-3000.0,0.0001943,2]
[389604780,1759738240518,-3000.0,0.0001944,2]
[389604781,1759738240527,-3000.0,0.0001945,2]
[389604782,1759738240536,-151.0,0.00019452,2]
[389604783,1759738240547,-450.0,0.00019452,2]
[389604784,1759738240556,-3000.0,0.0001946,2]
[389604785,1759738240565,-3000.0,0.0001947,2]
[389604786,1759738240574,-3000.0,0.0001948,2]
[389604787,1759738240583,-3000.0,0.0001949,2]
[389604788,1759738240592,-3000.0,0.000195,2]
[389604789,1759738240601,-444.0,0.000195,2]
[389604790,1759738240610,-3000.0,0.0001951,2]
[389604791,1759738240619,-3000.0,0.0001952,2]
[389604792,1759738240630,-3000.0,0.0001953,2]
[389604793,1759738240639,-3000.0,0.0001954,2]
[389604794,1759738240650,-3000.0,0.0001955,2]
[389604795,1759738240661,-500.0,0.00019554,2]
[389604796,1759738240670,-3000.0,0.0001956,2]
[389604797,1759738240680,-1110.11376403,0.00019568,2]
[389604798,1759738240689,-3000.0,0.0001957,2]
[389604799,1759738240698,-3000.0,0.0001958,2]
[389604800,1759738240707,-378.26617179,0.00019589,2]
[389604801,1759738240716,-3000.0,0.0001959,2]
[389604802,1759738240725,-3000.0,0.000196,2]
[389604803,1759738240734,-1000.0,0.00019606,2]
[389604804,1759738240743,-1000.0,0.00019606,2]
[389604805,1759738240752,-1000.0,0.00019606,2]
[389604806,1759738240761,-1000.0,0.00019606,2]
[389604807,1759738240770,-1000.0,0.00019606,2]
[389604808,1759738240779,-1000.0,0.00019606,2]
[389604809,1759738240788,-1000.0,0.00019606,2]
[389604810,1759738240797,-500.0,0.00019606,2]
[389604811,1759738240807,-1000.0,0.00019606,2]
[389604812,1759738240816,-500.0,0.00019606,2]
[389604813,1759738240825,-500.0,0.00019606,2]
[389604814,1759738240834,-1001.98365039,0.00019606,2]
[389604815,1759738240843,-415.95746061,0.00019606,2]
[389604816,1759738240852,-1000.0,0.00019606,2]
[389604817,1759738240863,-3000.0,0.0001961,2]
[389604818,1759738240872,-3000.0,0.0001962,2]
[389604819,1759738240881,-720.0,0.00019625,2]
[389604820,1759738240891,-3000.0,0.0001963,2]
[389604821,1759738240903,-500.0,0.00019635,2]
[389604822,1759738240913,-3000.0,0.0001964,2]
[389604823,1759738240924,-180.94469675,0.00019641,2]
[389604824,1759738240935,-1116.0,0.00019641,2]
[389604825,1759738240945,-1000.0,0.00019643,2]
[389604826,1759738240956,-3000.0,0.0001965,2]
[389604827,1759738240976,-3000.0,0.0001966,2]
[389604828,1759738240998,-3000.0,0.0001967,2]
[389604829,1759738241023,-500.0,0.00019673,2]
[389604830,1759738241045,-500.0,0.00019673,2]
[389604831,1759738241068,-1014.31782585,0.00019676,2]
[389604832,1759738241090,-1000.0,0.00019676,2]
[389604833,1759738241116,-3000.0,0.0001968,2]
[389604834,1759738241142,-3000.0,0.0001969,2]
[389604835,1759738241165,-3000.0,0.000197,2]
[389604836,1759738241187,-3000.0,0.0001971,2]
[389604837,1759738241210,-1414.45700918,0.0001971,2]
[389604838,1759738241234,-840.22545862,0.00019715,2]
[389604839,1759738241256,-3000.0,0.0001972,2]
[389604840,1759738241280,-193.2023774,0.00019726,2]
[389604841,1759738241302,-3000.0,0.0001973,2]
[389604842,1759738241311,-3000.0,0.0001974,2]
[389604843,1759738241320,-406.558254,0.00019744,2]
[389604844,1759738241330,-3000.0,0.0001975,2]
[389604845,1759738241340,-3000.0,0.0001976,2]
[389604846,1759738241349,-3000.0,0.0001977,2]
[389604847,1759738241359,-500.0,0.00019773,2]
[389604848,1759738241368,-3000.0,0.0001978,2]
[389604849,1759738241377,-3000.0,0.0001979,2]
[389604850,1759738241387,-3000.0,0.000198,2]
[389604851,1759738241396,-3000.0,0.0001981,2]
[389604852,1759738241406,-3000.0,0.0001982,2]
[389604853,1759738241415,-500.0,0.00019828,2]
[389604854,1759738241424,-3000.0,0.0001983,2]
[389604855,1759738241434,-3000.0,0.0001984,2]
[389604856,1759738241443,-3000.0,0.0001985,2]
[389604857,1759738241452,-5445.372197,0.0001986,2]
[389604858,1759738241462,-12500.0,0.00019864,7]
[389604859,1759738241471,-12500.0,0.00019873,7]
[389604860,1759738241479,-293.61728183,0.000199,7]
[389604861,1759738241489,-533.6495537,0.000199,7]
[389604862,1759738241498,-468.0,0.000199,2]
[389604863,1759738241508,-500.0,0.00019909,2]
[389604864,1759738241517,-1116.0,0.00019915,2]
[389604865,1759738241526,-430.80311964,0.0001999,2]
[389604866,1759738241536,-158.15,0.0002,2]
[389604867,1759738241545,-160.0,0.0002,7]
[389604868,1759738241554,-300.0,0.0002,2]
[389604869,1759738241563,-880.29823075,0.0002,2]
[389604870,1759738241572,-180.0,0.00020055,3]
[389604871,1759738241581,-2000.0,0.000201,2]
[389604872,1759738241591,-2000.0,0.000201,2]
[389604873,1759738241600,-2000.0,0.000201,2]
[389604874,1759738241610,-2000.0,0.000201,2]
[389604875,1759738241619,-150.0,0.000201,2]
[389604876,1759738241628,-207.68461608,0.00020102,2]
[389604877,1759738241637,-500.0,0.00020154,2]
[389604878,1759738241646,-703.81341681,0.00020154,2]
[389604879,1759738241655,-1500.0,0.00020154,2]
[389604880,1759738241664,-1500.0,0.00020154,2]
[389604881,1759738241673,-1500.0,0.00020154,2]
[389604882,1759738241682,-632.56765264,0.00020154,2]
[389604883,1759738241691,-1500.0,0.00020154,2]
[389604884,1759738241700,-1500.0,0.00020154,2]
[389604885,1759738241710,-500.0,0.00020183,2]
[389604886,1759738241719,-1116.0,0.00020189,2]
[389604887,1759738241728,-501.64001291,0.00020191,2]
[389604888,1759738241737,-175.06780388,0.00020203,8]
[389604889,1759738241746,-1500.0,0.00020224,2]
[389604890,1759738241755,-492.0,0.000203,2]
[389604891,1759738241764,-1000.0,0.00020321,2]
[389604892,1759738241773,-301.56041544,0.00020374,2]
[389604893,1759738241782,-302.80975651,0.00020374,2]
[389604894,1759738241791,-160.0,0.0002044,2]
[389604895,1759738241801,-500.0,0.00020457,2]
[389604896,1759738241810,-1116.0,0.00020463,2]
[389604897,1759738241819,-314.62,0.00020546,3]
[389604898,1759738241828,-175.06780388,0.00020692,10]
[389604899,1759738241837,-516.0,0.000207,2]
[389604900,1759738241846,-2000.0,0.00020702,2]
[389604901,1759738241855,-2000.0,0.00020702,2]
[389604902,1759738241865,-2000.0,0.00020702,2]
[389604903,1759738241875,-2000.0,0.00020702,2]
[389604904,1759738241884,-2000.0,0.00020702,2]
[389604905,1759738241893,-629.24,0.00020721,3]
[389604906,1759738241903,-175.93,0.00020731,2]
[389604907,1759738241912,-1116.0,0.00020737,2]
[389604908,1759738241921,-2000.0,0.00020772,2]
[389604909,1759738241931,-1414.45700917,0.00020963,2]
[389604910,1759738241940,-260.0,0.00020988,2]
[389604911,1759738241949,-3000.0,0.00021,2]
[389604912,1759738241960,-3000.0,0.0002101,2]
[389604913,1759738241970,-1116.0,0.00021011,2]
[389604914,1759738241979,-3000.0,0.0002102,2]
[389604915,1759738241988,-3000.0,0.0002103,2]
[389604916,1759738241998,-3000.0,0.0002104,2]
[389604917,1759738242008,-325.92399859,0.00021048,2]
[389604918,1759738242017,-509.88699319,0.00021048,2]
[389604919,1759738242027,-151.0,0.00021048,2]
[389604920,1759738242037,-155.786338,0.00021048,2]
[389604921,1759738242046,-18603.8837,0.00021048,2]
[389604922,1759738242055,-3000.0,0.0002105,2]
[389604923,1759738242064,-3000.0,0.0002106,2]
[389604924,1759738242074,-3000.0,0.0002107,2]
[389604925,1759738242083,-3000.0,0.0002108,2]
[389604926,1759738242093,-179.9820018,0.00021086,2]
[389604927,1759738242102,-3000.0,0.0002109,2]
[389604928,1759738242112,-2000.0,0.000211,2]
[389604929,1759738242122,-2000.0,0.000211,2]
[389604930,1759738242131,-2000.0,0.000211,2]
[389604931,1759738242140,-2000.0,0.000211,2]
[389604932,1759738242149,-3000.0,0.000211,2]
[389604933,1759738242159,-540.0,0.000211,2]
[389604934,1759738242168,-3000.0,0.0002111,2]
[389604935,1759738242178,-3000.0,0.0002112,2]
[389604936,1759738242187,-3000.0,0.0002113,2]
[389604937,1759738242197,-3000.0,0.0002114,2]
[389604938,1759738242206,-3000.0,0.0002115,2]
[389604939,1759738242216,-3000.0,0.0002116,2]
[389604940,1759738242225,-3000.0,0.0002117,2]
[389604941,1759738242234,-3000.0,0.0002118,2]
[389604942,1759738242244,-175.06780388,0.00021181,12]
[389604943,1759738242253,-3000.0,0.0002119,2]
[389604944,1759738242263,-3000.0,0.000212,2]
[389604945,1759738242274,-3000.0,0.0002121,2]
[389604946,1759738242287,-3000.0,0.0002122,2]
[389604947,1759738242296,-3000.0,0.0002123,2]
[389604948,1759738242306,-3000.0,0.0002124,2]
[389604949,1759738242315,-2500.0,0.0002125,2]
[389604950,1759738242326,-2500.0,0.0002125,2]
[389604951,1759738242335,-2500.0,0.0002125,2]
[389604952,1759738242344,-2500.0,0.0002125,2]
[389604953,1759738242355,-2223.75108112,0.0002125,2]
[389604954,1759738242365,-3000.0,0.0002125,2]
[389604955,1759738242375,-3000.0,0.0002126,2]
[389604956,1759738242384,-3000.0,0.0002127,2]
[389604957,1759738242394,-3000.0,0.0002128,2]
[389604958,1759738242403,-1116.0,0.00021285,2]
[389604959,1759738242413,-3000.0,0.0002129,2]
[389604960,1759738242423,-3000.0,0.000213,2]
[389604961,1759738242432,-1000.0,0.000213,2]
[389604962,1759738242441,-1000.0,0.000213,2]
[389604963,1759738242450,-1000.0,0.000213,2]
[389604964,1759738242459,-1000.0,0.000213,2]
[389604965,1759738242469,-1000.0,0.000213,2]
[389604966,1759738242478,-1000.0,0.000213,2]
[389604967,1759738242487,-1000.0,0.000213,2]
[389604968,1759738242496,-390.635915,0.000213,2]
[389604969,1759738242505,-3000.0,0.0002131,2]
[389604970,1759738242515,-2500.0,0.0002132,2]
[389604971,1759738242524,-3000.0,0.0002132,2]
[389604972,1759738242533,-250.0,0.00021325,2]
[389604973,1759738242543,-3000.0,0.0002133,2]
[389604974,1759738242553,-3000.0,0.0002134,2]
[389604975,1759738242562,-150.0,0.00021345,2]
[389604976,1759738242571,-150.0,0.00021345,2]
[389604977,1759738242581,-150.0,0.00021345,2]
[389604978,1759738242590,-630.0,0.00021345,2]
[389604980,1759738242600,-2158.0,0.00021345,2]
[389604981,1759738242609,-3000.0,0.0002135,2]
[389604982,1759738242618,-3000.0,0.0002136,2]
[389604983,1759738242627,-3000.0,0.0002137,2]
[389604984,1759738242636,-500.0,0.00021373,2]
[389604985,1759738242645,-500.0,0.00021373,2]
[389604986,1759738242654,-500.0,0.00021373,2]
[389604987,1759738242663,-500.0,0.00021373,2]
[389604988,1759738242672,-601.92462104,0.00021373,2]
[389604989,1759738242682,-500.0,0.00021373,2]
[389604990,1759738242691,-500.0,0.00021373,2]
[389604991,1759738242700,-3000.0,0.0002138,2]
[389604992,1759738242709,-3000.0,0.0002139,2]
[389604993,1759738242718,-3000.0,0.000214,2]
[389604994,1759738242727,-1000.0,0.000214,2]
[389604995,1759738242736,-1000.0,0.000214,2]
[389604996,1759738242746,-1000.0,0.000214,2]
[389604998,1759738242755,-3000.0,0.0002141,2]
[389604999,1759738242764,-3000.0,0.0002142,2]
[389605000,1759738242773,-3000.0,0.0002143,2]
[389605001,1759738242782,-4823.224143,0.0002144,2]
[389605002,1759738242791,-564.0,0.000215,2]
[389605003,1759738242800,-360.0,0.00021536,2]
[389605004,1759738242810,-500.27430723,0.00021539,2]
[389605005,1759738242819,-1116.0,0.00021559,2]
[389605006,1759738242828,-500.0,0.00021563,2]
[389605007,1759738242837,-500.0,0.00021563,2]
[389605008,1759738242847,-864.0,0.00021587,20]
[389605009,1759738242856,-500.0,0.00021595,2]
[389605010,1759738242866,-558.09620544,0.00021595,2]
[389605011,1759738242876,-151.0,0.00021596,2]
[389605012,1759738242886,-19292.2273969,0.00021596,2]
[389605013,1759738242896,-500.0,0.000216,2]
[389605014,1759738242905,-465.02120418,0.000216,2]
[389605015,1759738242914,-500.0,0.000216,2]
[389605016,1759738242924,-500.0,0.00021657,2]
[389605017,1759738242933,-200.1689984,0.00021657,2]
[389605018,1759738242942,-500.0,0.00021657,2]
[389605019,1759738242951,-500.0,0.00021657,2]
[389605020,1759738242960,-500.0,0.00021657,2]
[389605022,1759738242969,-580.16047374,0.00021658,2]
[389605024,1759738242979,-500.0,0.00021658,2]
[389605026,1759738242988,-200.16600572,0.00021658,2]
[389605028,1759738242997,-500.0,0.00021658,2]
[389605030,1759738243006,-500.0,0.00021658,2]
[389605032,1759738243015,-161.53575302,0.00021658,2]
[389605034,1759738243024,-212.43024565,0.00021658,2]
[389605050,1759738243167,-500.0,0.00021658,2]
[389605052,1759738243178,-500.0,0.00021658,2]
[389605054,1759738243188,-500.0,0.00021658,2]
[389605056,1759738243197,-510.41421693,0.00021658,2]
[389605058,1759738243206,-500.0,0.00021658,2]
[389605060,1759738243215,-500.0,0.00021658,2]
[389605062,1759738243224,-500.0,0.00021658,2]
[389605063,1759738243233,-500.0,0.00021658,2]
[389605064,1759738243242,-500.0,0.00021658,2]
[389605066,1759738243251,-504.53120217,0.00021658,2]